[Event "Titled Tuesday Blitz June 28 Late 2022"]
[White "Leenhouts, Koen"]
[Black "Bortnyk, Olexandr"]
[WhiteFideId "1008439"]
[BlackFideId "14120828"]
[WhiteElo "2409"]
[BlackElo "2723"]
[Result "0-1"]
[Round "04"]
[TimeControl "180+1"]
[Date "2022.06.28"]
[WhiteClock "0:00:03"]
[BlackClock "0:00:16"]

1. d4 {[%clk 0:03:00]}  d6 {[%clk 0:03:00]} 2. c4 {[%clk 0:02:58]}  e5 {[%clk 0:03:00]} 3. d5 {[%clk 0:02:58]}  f5 {[%clk 0:03:00]} 4. Nc3 {[%clk 0:02:57]}  Nf6 {[%clk 0:02:58]} 5. e4 {[%clk 0:02:54]}  fxe4 {[%clk 0:02:59]} 6. Nge2 {[%clk 0:02:50]}  Bf5 {[%clk 0:02:59]} 7. Ng3 {[%clk 0:02:50]}  Bg6 {[%clk 0:03:00]} 8. h4 {[%clk 0:02:48]}  h6 {[%clk 0:02:58]} 9. h5 {[%clk 0:02:46]}  Bh7 {[%clk 0:02:58]} 10. Be3 {[%clk 0:02:43]}  Be7 {[%clk 0:02:58]} 11. Qc2 {[%clk 0:02:37]}  Na6 {[%clk 0:02:58]} 12. a3 {[%clk 0:02:33]}  O-O {[%clk 0:02:58]} 13. Ngxe4 {[%clk 0:02:25]}  Ng4 {[%clk 0:02:58]} 14. Bd3 {[%clk 0:02:08]}  Nxe3 {[%clk 0:02:58]} 15. fxe3 {[%clk 0:02:08]}  Kh8 {[%clk 0:02:58]} 16. b4 {[%clk 0:02:02]}  c6 {[%clk 0:02:57]} 17. O-O-O {[%clk 0:01:49]}  Rc8 {[%clk 0:02:57]} 18. Kb2 {[%clk 0:01:43]}  Qb6 {[%clk 0:02:52]} 19. c5 {[%clk 0:01:22]}  dxc5 {[%clk 0:02:49]} 20. Na4 {[%clk 0:01:16]}  Qd8 {[%clk 0:02:39]} 21. d6 {[%clk 0:01:15]}  Bg5 {[%clk 0:02:28]} 22. Naxc5 {[%clk 0:01:04]}  Bxe3 {[%clk 0:02:24]} 23. Ne6 {[%clk 0:00:56]}  Qb6 {[%clk 0:02:17]} 24. d7 {[%clk 0:00:51]}  Bd4+ {[%clk 0:02:07]} 25. Kb1 {[%clk 0:00:42]}  Nxb4 {[%clk 0:02:04]} 26. Qb3 {[%clk 0:00:19]}  Nxd3 {[%clk 0:01:57]} 27. Qxb6 {[%clk 0:00:19]}  axb6 {[%clk 0:01:40]} 28. Rhf1 {[%clk 0:00:18]}  Bxe4 {[%clk 0:01:36]} 29. Rxf8+ {[%clk 0:00:16]}  Rxf8 {[%clk 0:01:36]} 30. Nxf8 {[%clk 0:00:16]}  Nc5+ {[%clk 0:01:11]} 31. Ka2 {[%clk 0:00:16]}  Nxd7 {[%clk 0:01:03]} 32. Nxd7 {[%clk 0:00:17]}  Bxg2 {[%clk 0:01:03]} 33. Re1 {[%clk 0:00:12]}  e4 {[%clk 0:00:59]} 34. Nf8 {[%clk 0:00:12]}  e3 {[%clk 0:00:57]} 35. Ng6+ {[%clk 0:00:11]}  Kh7 {[%clk 0:00:53]} 36. Kb3 {[%clk 0:00:11]}  b5 {[%clk 0:00:48]} 37. Kc2 {[%clk 0:00:07]}  Be4+ {[%clk 0:00:47]} 38. Kb3 {[%clk 0:00:06]}  Bxg6 {[%clk 0:00:46]} 39. hxg6+ {[%clk 0:00:07]}  Kxg6 {[%clk 0:00:46]} 40. Kc2 {[%clk 0:00:07]}  c5 {[%clk 0:00:46]} 41. Kd3 {[%clk 0:00:08]}  h5 {[%clk 0:00:47]} 42. Rg1+ {[%clk 0:00:07]}  Kf5 {[%clk 0:00:46]} 43. Rf1+ {[%clk 0:00:08]}  Kg4 {[%clk 0:00:47]} 44. Rf7 {[%clk 0:00:08]}  h4 {[%clk 0:00:30]} 45. Rxb7 {[%clk 0:00:08]}  h3 {[%clk 0:00:21]} 46. Rxb5 {[%clk 0:00:08]}  h2 {[%clk 0:00:22]} 47. Rb1 {[%clk 0:00:08]}  Kf3 {[%clk 0:00:22]} 48. a4 {[%clk 0:00:07]}  e2 {[%clk 0:00:23]} 49. a5 {[%clk 0:00:06]}  Bg1 {[%clk 0:00:21]} 50. a6 {[%clk 0:00:03]}  h1=Q {[%clk 0:00:22]} 51. a7 {[%clk 0:00:04]}  Qh7+ {[%clk 0:00:17]} 52. Kc4 {[%clk 0:00:03]}  Qe4+ {[%clk 0:00:16]} 53. Kb5 {[%clk 0:00:03]}  Qxb1+ {[%clk 0:00:16]} 54. Kc6 {[%clk 0:00:03]}  Qe4+ {[%clk 0:00:16]} 0-1


[Site "https://www.chess.com"]

[Event "Titled Tuesday Blitz June 28 Late 2022"]
[White "Leiva, Gianmarco"]
[Black "Eynullayev, Atilla"]
[WhiteFideId "3804399"]
[BlackFideId "13413570"]
[WhiteElo "2703"]
[BlackElo "2473"]
[Result "1-0"]
[Round "04"]
[TimeControl "180+1"]
[Date "2022.06.29"]
[WhiteClock "0:00:40"]
[BlackClock "0:00:05"]

1. e4 {[%clk 0:02:55]}  c5 {[%clk 0:02:59]} 2. Nf3 {[%clk 0:02:55]}  d6 {[%clk 0:03:00]} 3. Bb5+ {[%clk 0:02:53]}  Nc6 {[%clk 0:03:00]} 4. O-O {[%clk 0:02:50]}  Bd7 {[%clk 0:03:00]} 5. Re1 {[%clk 0:02:47]}  Nf6 {[%clk 0:03:00]} 6. c3 {[%clk 0:02:46]}  a6 {[%clk 0:03:01]} 7. Bf1 {[%clk 0:02:44]}  Bg4 {[%clk 0:03:00]} 8. d4 {[%clk 0:02:45]}  cxd4 {[%clk 0:03:00]} 9. cxd4 {[%clk 0:02:46]}  e5 {[%clk 0:03:00]} 10. d5 {[%clk 0:02:42]}  Nd4 {[%clk 0:03:00]} 11. Be3 {[%clk 0:02:34]}  Nxf3+ {[%clk 0:03:01]} 12. gxf3 {[%clk 0:02:34]}  Bd7 {[%clk 0:03:01]} 13. Nd2 {[%clk 0:02:06]}  b5 {[%clk 0:03:01]} 14. a4 {[%clk 0:01:59]}  Be7 {[%clk 0:03:02]} 15. axb5 {[%clk 0:01:57]}  axb5 {[%clk 0:03:02]} 16. Rxa8 {[%clk 0:01:44]}  Qxa8 {[%clk 0:03:03]} 17. Qa1 {[%clk 0:01:44]}  O-O {[%clk 0:03:03]} 18. Nb3 {[%clk 0:01:36]}  Rc8 {[%clk 0:02:28]} 19. Qxa8 {[%clk 0:01:32]}  Rxa8 {[%clk 0:02:28]} 20. Ra1 {[%clk 0:01:33]}  Rxa1 {[%clk 0:00:44]} 21. Nxa1 {[%clk 0:01:34]}  Nh5 {[%clk 0:00:08]} 22. Nc2 {[%clk 0:01:21]}  Bd8 {[%clk 0:00:09]} 23. b4 {[%clk 0:01:19]}  f5 {[%clk 0:00:09]} 24. Na3 {[%clk 0:01:16]}  Nf6 {[%clk 0:00:09]} 25. Bg5 {[%clk 0:01:00]}  Bb6 {[%clk 0:00:06]} 26. Bxb5 {[%clk 0:00:56]}  Bc8 {[%clk 0:00:06]} 27. Nc4 {[%clk 0:00:54]}  Bc7 {[%clk 0:00:06]} 28. Bc6 {[%clk 0:00:47]}  Nd7 {[%clk 0:00:05]} 29. Be7 {[%clk 0:00:44]}  Kf7 {[%clk 0:00:05]} 30. Bxd6 {[%clk 0:00:44]}  Nb6 {[%clk 0:00:05]} 31. Nxb6 {[%clk 0:00:40]} 1-0


[Site "https://www.chess.com"]

[Event "Titled Tuesday Blitz June 28 Late 2022"]
[White "Leve, Nitai"]
[Black "Caputcuoglu, Zeki Berke"]
[WhiteFideId "2006898"]
[BlackFideId "34548610"]
[WhiteElo "2144"]
[BlackElo "1368"]
[Result "1-0"]
[Round "04"]
[TimeControl "180+1"]
[Date "2022.06.29"]
[WhiteClock "0:00:38"]
[BlackClock "0:00:49"]

1. e4 {[%clk 0:03:00]}  e5 {[%clk 0:02:59]} 2. Nf3 {[%clk 0:02:53]}  Nc6 {[%clk 0:02:59]} 3. Bb5 {[%clk 0:02:53]}  a6 {[%clk 0:02:58]} 4. Ba4 {[%clk 0:02:47]}  Nf6 {[%clk 0:02:57]} 5. d4 {[%clk 0:02:47]}  Nxe4 {[%clk 0:02:41]} 6. O-O {[%clk 0:02:45]}  b5 {[%clk 0:02:39]} 7. Bb3 {[%clk 0:02:45]}  d5 {[%clk 0:02:40]} 8. Nxe5 {[%clk 0:02:30]}  Nxe5 {[%clk 0:02:38]} 9. dxe5 {[%clk 0:02:31]}  Be6 {[%clk 0:02:38]} 10. Nd2 {[%clk 0:02:20]}  Nc5 {[%clk 0:02:31]} 11. f4 {[%clk 0:01:46]}  Qd7 {[%clk 0:02:07]} 12. c3 {[%clk 0:01:42]}  Nxb3 {[%clk 0:02:05]} 13. Nxb3 {[%clk 0:01:42]}  c5 {[%clk 0:02:03]} 14. Be3 {[%clk 0:01:36]}  Rc8 {[%clk 0:02:03]} 15. Qf3 {[%clk 0:01:26]}  g6 {[%clk 0:01:50]} 16. Qf2 {[%clk 0:01:20]}  Qc7 {[%clk 0:01:47]} 17. Rad1 {[%clk 0:01:09]}  Be7 {[%clk 0:01:44]} 18. f5 {[%clk 0:01:04]}  Bxf5 {[%clk 0:01:44]} 19. Rxd5 {[%clk 0:01:03]}  Be6 {[%clk 0:01:45]} 20. Rd2 {[%clk 0:00:51]}  O-O {[%clk 0:01:41]} 21. Kh1 {[%clk 0:00:49]}  Qxe5 {[%clk 0:01:37]} 22. Bh6 {[%clk 0:00:45]}  Rfd8 {[%clk 0:01:36]} 23. Re2 {[%clk 0:00:45]}  Qh5 {[%clk 0:01:34]} 24. Rxe6 {[%clk 0:00:39]}  Bd6 {[%clk 0:00:49]} 25. Qxf7+ {[%clk 0:00:38]} 1-0


[Site "https://www.chess.com"]

[Event "Titled Tuesday Blitz June 28 Late 2022"]
[White "Makarian, Rudik"]
[Black "Ambartsumova, Karina"]
[WhiteFideId "44105681"]
[BlackFideId "4166299"]
[WhiteElo "2398"]
[BlackElo "2262"]
[Result "0-1"]
[Round "04"]
[TimeControl "180+1"]
[Date "2022.06.28"]
[WhiteClock "0:01:16"]
[BlackClock "0:01:14"]

1. c4 {[%clk 0:02:58]}  e6 {[%clk 0:02:59]} 2. Nf3 {[%clk 0:02:58]}  Nf6 {[%clk 0:02:59]} 3. g3 {[%clk 0:02:56]}  d5 {[%clk 0:02:59]} 4. Bg2 {[%clk 0:02:55]}  dxc4 {[%clk 0:02:59]} 5. Qa4+ {[%clk 0:02:40]}  c6 {[%clk 0:02:58]} 6. Qxc4 {[%clk 0:02:39]}  b5 {[%clk 0:02:58]} 7. Qb3 {[%clk 0:02:32]}  Bb7 {[%clk 0:02:58]} 8. O-O {[%clk 0:02:31]}  Be7 {[%clk 0:02:57]} 9. a4 {[%clk 0:02:29]}  a6 {[%clk 0:02:57]} 10. d3 {[%clk 0:02:28]}  Nbd7 {[%clk 0:02:54]} 11. Bg5 {[%clk 0:02:25]}  O-O {[%clk 0:02:53]} 12. Nc3 {[%clk 0:02:23]}  h6 {[%clk 0:02:42]} 13. Bxf6 {[%clk 0:02:23]}  Bxf6 {[%clk 0:02:42]} 14. Qc2 {[%clk 0:02:20]}  Qb6 {[%clk 0:02:35]} 15. Ne4 {[%clk 0:02:16]}  Be7 {[%clk 0:02:32]} 16. Rfc1 {[%clk 0:02:13]}  Rac8 {[%clk 0:02:31]} 17. h4 {[%clk 0:02:05]}  Rfd8 {[%clk 0:02:29]} 18. Nfd2 {[%clk 0:01:56]}  c5 {[%clk 0:02:26]} 19. Qc3 {[%clk 0:01:41]}  f5 {[%clk 0:02:19]} 20. axb5 {[%clk 0:01:28]}  axb5 {[%clk 0:02:10]} 21. Qb3 {[%clk 0:01:27]}  fxe4 {[%clk 0:02:09]} 22. Qc2 {[%clk 0:01:28]}  exd3 {[%clk 0:02:05]} 23. Qxd3 {[%clk 0:01:27]}  Bxg2 {[%clk 0:02:05]} 24. Kxg2 {[%clk 0:01:28]}  Qc6+ {[%clk 0:02:00]} 25. Kg1 {[%clk 0:01:22]}  Ne5 {[%clk 0:01:59]} 26. Qe3 {[%clk 0:01:22]}  Ng4 {[%clk 0:01:53]} 27. Qe4 {[%clk 0:01:22]}  Nxf2 {[%clk 0:01:28]} 28. Kxf2 {[%clk 0:01:21]}  Rxd2 {[%clk 0:01:27]} 29. Qe3 {[%clk 0:01:21]}  Rf8+ {[%clk 0:01:24]} 30. Kg1 {[%clk 0:01:21]}  Rd5 {[%clk 0:01:20]} 31. Kh2 {[%clk 0:01:20]}  Rdf5 {[%clk 0:01:19]} 32. Kg1 {[%clk 0:01:18]}  c4 {[%clk 0:01:15]} 33. b4 {[%clk 0:01:16]}  Bxb4 {[%clk 0:01:14]} 0-1


[Site "https://www.chess.com"]

[Event "Titled Tuesday Blitz June 28 Late 2022"]
[White "Marin Masis, Jose Esteban"]
[Black "Gallegos Diaz, Carlos Alberto"]
[WhiteFideId "6508146"]
[BlackFideId "3900886"]
[WhiteElo "1710"]
[BlackElo "2362"]
[Result "0-1"]
[Round "04"]
[TimeControl "180+1"]
[Date "2022.06.29"]
[WhiteClock "0:00:37"]
[BlackClock "0:01:49"]

1. e4 {[%clk 0:03:00]}  d6 {[%clk 0:02:58]} 2. d4 {[%clk 0:03:00]}  Nf6 {[%clk 0:02:58]} 3. Nc3 {[%clk 0:03:00]}  c6 {[%clk 0:02:58]} 4. Nf3 {[%clk 0:03:00]}  Qa5 {[%clk 0:02:58]} 5. Bd2 {[%clk 0:02:59]}  e5 {[%clk 0:02:58]} 6. dxe5 {[%clk 0:02:53]}  dxe5 {[%clk 0:02:59]} 7. Bc4 {[%clk 0:02:34]}  Qc5 {[%clk 0:02:58]} 8. Bb3 {[%clk 0:02:30]}  Be7 {[%clk 0:02:58]} 9. O-O {[%clk 0:02:28]}  O-O {[%clk 0:02:57]} 10. Be3 {[%clk 0:02:18]}  Qa5 {[%clk 0:02:56]} 11. Qe2 {[%clk 0:02:10]}  Nbd7 {[%clk 0:02:55]} 12. Nd2 {[%clk 0:02:00]}  Nc5 {[%clk 0:02:52]} 13. Nc4 {[%clk 0:01:47]}  Qc7 {[%clk 0:02:51]} 14. f3 {[%clk 0:01:42]}  b5 {[%clk 0:02:33]} 15. Nd2 {[%clk 0:01:38]}  a5 {[%clk 0:02:33]} 16. a4 {[%clk 0:01:36]}  Nxb3 {[%clk 0:02:21]} 17. Nxb3 {[%clk 0:01:34]}  b4 {[%clk 0:02:19]} 18. Nb1 {[%clk 0:00:55]}  Ba6 {[%clk 0:02:18]} 19. Qf2 {[%clk 0:00:55]}  Bxf1 {[%clk 0:02:00]} 20. Kxf1 {[%clk 0:00:56]}  c5 {[%clk 0:02:00]} 21. Nxc5 {[%clk 0:00:41]}  Rfc8 {[%clk 0:01:53]} 22. Nd3 {[%clk 0:00:37]}  Qxc2 {[%clk 0:01:50]} 23. Nd2 {[%clk 0:00:37]}  Qxd3+ {[%clk 0:01:49]} 0-1


[Site "https://www.chess.com"]

[Event "Titled Tuesday Blitz June 28 Late 2022"]
[White "Marin Ramirez, Gerardo"]
[Black "Omariev, Maksim"]
[WhiteFideId "3901068"]
[BlackFideId "4193423"]
[WhiteElo "1920"]
[BlackElo "2443"]
[Result "0-1"]
[Round "04"]
[TimeControl "180+1"]
[Date "2022.06.29"]
[WhiteClock "0:00:01"]
[BlackClock "0:00:06"]

1. d4 {[%clk 0:03:00]}  d5 {[%clk 0:02:57]} 2. Nf3 {[%clk 0:03:01]}  Nf6 {[%clk 0:02:57]} 3. c4 {[%clk 0:03:02]}  c6 {[%clk 0:02:57]} 4. Nc3 {[%clk 0:03:02]}  g6 {[%clk 0:02:55]} 5. Bg5 {[%clk 0:03:03]}  Bg7 {[%clk 0:02:55]} 6. e3 {[%clk 0:03:01]}  O-O {[%clk 0:02:56]} 7. h3 {[%clk 0:02:57]}  h6 {[%clk 0:02:55]} 8. Bf4 {[%clk 0:02:56]}  Bf5 {[%clk 0:02:53]} 9. cxd5 {[%clk 0:02:55]}  cxd5 {[%clk 0:02:53]} 10. Qb3 {[%clk 0:02:54]}  b6 {[%clk 0:02:51]} 11. Be2 {[%clk 0:02:45]}  Nc6 {[%clk 0:02:51]} 12. O-O {[%clk 0:02:38]}  Na5 {[%clk 0:02:50]} 13. Qb4 {[%clk 0:02:33]}  g5 {[%clk 0:02:35]} 14. Bh2 {[%clk 0:02:30]}  e6 {[%clk 0:02:29]} 15. Bd6 {[%clk 0:02:20]}  Re8 {[%clk 0:02:24]} 16. Bb5 {[%clk 0:02:21]}  Nd7 {[%clk 0:02:18]} 17. Rac1 {[%clk 0:01:54]}  a6 {[%clk 0:02:13]} 18. Be2 {[%clk 0:01:53]}  b5 {[%clk 0:01:57]} 19. Nxd5 {[%clk 0:01:40]}  exd5 {[%clk 0:01:38]} 20. Bc7 {[%clk 0:01:40]}  Qf6 {[%clk 0:01:12]} 21. Qxa5 {[%clk 0:01:35]}  Qe6 {[%clk 0:00:56]} 22. Bg3 {[%clk 0:01:25]}  Nf6 {[%clk 0:00:46]} 23. Nd2 {[%clk 0:01:08]}  h5 {[%clk 0:00:41]} 24. Rc7 {[%clk 0:00:48]}  h4 {[%clk 0:00:37]} 25. Be5 {[%clk 0:00:45]}  g4 {[%clk 0:00:33]} 26. hxg4 {[%clk 0:00:22]}  Nxg4 {[%clk 0:00:34]} 27. Bxg7 {[%clk 0:00:20]}  Kxg7 {[%clk 0:00:35]} 28. Bxg4 {[%clk 0:00:14]}  Bxg4 {[%clk 0:00:35]} 29. Rfc1 {[%clk 0:00:12]}  Qg6 {[%clk 0:00:27]} 30. R7c6 {[%clk 0:00:12]}  Qg5 {[%clk 0:00:25]} 31. Qc7 {[%clk 0:00:12]}  h3 {[%clk 0:00:18]} 32. Qf4 {[%clk 0:00:13]}  Qxf4 {[%clk 0:00:10]} 33. exf4 {[%clk 0:00:11]}  hxg2 {[%clk 0:00:11]} 34. Kxg2 {[%clk 0:00:10]}  Re2 {[%clk 0:00:11]} 35. R1c2 {[%clk 0:00:10]}  Bf5 {[%clk 0:00:11]} 36. Kf3 {[%clk 0:00:08]}  Rae8 {[%clk 0:00:09]} 37. b4 {[%clk 0:00:03]}  Bxc2 {[%clk 0:00:05]} 38. Rxc2 {[%clk 0:00:03]}  Re1 {[%clk 0:00:05]} 39. Nb3 {[%clk 0:00:01]}  Rb1 {[%clk 0:00:05]} 40. Nc5 {[%clk 0:00:01]}  Rh8 {[%clk 0:00:05]} 41. Nxa6 {[%clk 0:00:01]}  Rh3+ {[%clk 0:00:05]} 42. Kg2 {[%clk 0:00:01]}  Ra3 {[%clk 0:00:06]} 0-1


[Site "https://www.chess.com"]

[Event "Titled Tuesday Blitz June 28 Late 2022"]
[White "Martinez Alcantara, Jose Eduardo"]
[Black "Boruchovsky, Avital"]
[WhiteFideId "3805662"]
[BlackFideId "2800055"]
[WhiteElo "2703"]
[BlackElo "2466"]
[Result "1/2-1/2"]
[Round "04"]
[TimeControl "180+1"]
[Date "2022.06.28"]
[WhiteClock "0:00:15"]
[BlackClock "0:00:10"]

1. e4 {[%clk 0:03:00]}  e6 {[%clk 0:02:59]} 2. d4 {[%clk 0:03:00]}  d5 {[%clk 0:03:00]} 3. Nc3 {[%clk 0:03:01]}  Bb4 {[%clk 0:03:00]} 4. e5 {[%clk 0:03:01]}  c5 {[%clk 0:03:00]} 5. a3 {[%clk 0:03:02]}  Bxc3+ {[%clk 0:02:59]} 6. bxc3 {[%clk 0:03:03]}  Ne7 {[%clk 0:03:00]} 7. h4 {[%clk 0:03:02]}  b6 {[%clk 0:02:57]} 8. h5 {[%clk 0:03:01]}  h6 {[%clk 0:02:56]} 9. Bb5+ {[%clk 0:03:01]}  Bd7 {[%clk 0:02:55]} 10. a4 {[%clk 0:03:01]}  Qc7 {[%clk 0:02:52]} 11. Nf3 {[%clk 0:02:26]}  Nbc6 {[%clk 0:02:49]} 12. O-O {[%clk 0:02:11]}  O-O {[%clk 0:02:35]} 13. Re1 {[%clk 0:02:09]}  a6 {[%clk 0:02:31]} 14. Bd3 {[%clk 0:02:09]}  cxd4 {[%clk 0:02:31]} 15. cxd4 {[%clk 0:02:07]}  Nb4 {[%clk 0:02:29]} 16. Bd2 {[%clk 0:01:53]}  Nxd3 {[%clk 0:02:25]} 17. cxd3 {[%clk 0:01:54]}  Rfc8 {[%clk 0:02:24]} 18. Bb4 {[%clk 0:01:45]}  Qd8 {[%clk 0:02:19]} 19. Qd2 {[%clk 0:01:43]}  Nc6 {[%clk 0:02:13]} 20. Bd6 {[%clk 0:01:41]}  Na5 {[%clk 0:01:59]} 21. Qe3 {[%clk 0:01:32]}  Rc2 {[%clk 0:01:49]} 22. g4 {[%clk 0:01:30]}  b5 {[%clk 0:01:31]} 23. axb5 {[%clk 0:01:25]}  Bxb5 {[%clk 0:01:29]} 24. g5 {[%clk 0:01:20]}  hxg5 {[%clk 0:01:23]} 25. Rad1 {[%clk 0:00:55]}  Nb3 {[%clk 0:01:13]} 26. Nxg5 {[%clk 0:00:51]}  Nxd4 {[%clk 0:01:11]} 27. Kh1 {[%clk 0:00:37]}  Nf5 {[%clk 0:01:05]} 28. Qf4 {[%clk 0:00:37]}  Rxf2 {[%clk 0:00:54]} 29. Qxf2 {[%clk 0:00:36]}  Qxg5 {[%clk 0:00:53]} 30. Qf3 {[%clk 0:00:27]}  Qh4+ {[%clk 0:00:47]} 31. Kg2 {[%clk 0:00:21]}  Rc8 {[%clk 0:00:46]} 32. Re2 {[%clk 0:00:20]}  Nd4 {[%clk 0:00:41]} 33. Qf2 {[%clk 0:00:20]}  Qg4+ {[%clk 0:00:38]} 34. Kf1 {[%clk 0:00:21]}  Nxe2 {[%clk 0:00:38]} 35. Qxe2 {[%clk 0:00:22]}  Qf5+ {[%clk 0:00:32]} 36. Kg1 {[%clk 0:00:19]}  d4 {[%clk 0:00:31]} 37. Rf1 {[%clk 0:00:15]}  Qxd3 {[%clk 0:00:24]} 38. Qxd3 {[%clk 0:00:15]}  Bxd3 {[%clk 0:00:25]} 39. Rd1 {[%clk 0:00:16]}  Be2 {[%clk 0:00:25]} 40. Rxd4 {[%clk 0:00:16]}  Bxh5 {[%clk 0:00:25]} 41. Kg2 {[%clk 0:00:16]}  Be2 {[%clk 0:00:23]} 42. Kf2 {[%clk 0:00:16]}  Bb5 {[%clk 0:00:23]} 43. Bb4 {[%clk 0:00:17]}  Rc4 {[%clk 0:00:22]} 44. Rd8+ {[%clk 0:00:17]}  Kh7 {[%clk 0:00:23]} 45. Bd2 {[%clk 0:00:16]}  Kg6 {[%clk 0:00:22]} 46. Kg3 {[%clk 0:00:15]}  Re4 {[%clk 0:00:21]} 47. Bf4 {[%clk 0:00:15]}  Kf5 {[%clk 0:00:20]} 48. Rf8 {[%clk 0:00:15]}  f6 {[%clk 0:00:19]} 49. exf6 {[%clk 0:00:16]}  gxf6 {[%clk 0:00:20]} 50. Bc7 {[%clk 0:00:16]}  Rg4+ {[%clk 0:00:19]} 51. Kf2 {[%clk 0:00:16]}  e5 {[%clk 0:00:19]} 52. Bd8 {[%clk 0:00:16]}  Rg6 {[%clk 0:00:19]} 53. Rf7 {[%clk 0:00:17]}  Ke6 {[%clk 0:00:19]} 54. Re7+ {[%clk 0:00:17]}  Kd5 {[%clk 0:00:19]} 55. Rf7 {[%clk 0:00:18]}  Ke6 {[%clk 0:00:16]} 56. Re7+ {[%clk 0:00:18]}  Kf5 {[%clk 0:00:16]} 57. Rf7 {[%clk 0:00:18]}  Bc4 {[%clk 0:00:16]} 58. Rc7 {[%clk 0:00:18]}  Bd5 {[%clk 0:00:16]} 59. Rd7 {[%clk 0:00:17]}  Ke6 {[%clk 0:00:13]} 60. Re7+ {[%clk 0:00:16]}  Kd6 {[%clk 0:00:13]} 61. Ra7 {[%clk 0:00:15]}  Bc4 {[%clk 0:00:12]} 62. Rb7 {[%clk 0:00:16]}  Kd5 {[%clk 0:00:10]} 63. Rf7 {[%clk 0:00:14]}  Ke4 {[%clk 0:00:09]} 64. Rxf6 {[%clk 0:00:14]}  Rxf6+ {[%clk 0:00:09]} 65. Bxf6 {[%clk 0:00:15]}  a5 {[%clk 0:00:09]} 66. Ke1 {[%clk 0:00:15]}  a4 {[%clk 0:00:10]} 67. Kd2 {[%clk 0:00:16]}  Kf5 {[%clk 0:00:06]} 68. Bxe5 {[%clk 0:00:11]}  Kxe5 {[%clk 0:00:06]} 69. Kc2 {[%clk 0:00:12]}  a3 {[%clk 0:00:07]} 70. Kb1 {[%clk 0:00:13]}  Kd4 {[%clk 0:00:08]} 71. Ka1 {[%clk 0:00:13]}  Kc3 {[%clk 0:00:08]} 72. Kb1 {[%clk 0:00:14]}  Kb3 {[%clk 0:00:09]} 73. Ka1 {[%clk 0:00:15]}  a2 {[%clk 0:00:10]} 1/2-1/2


[Site "https://www.chess.com"]

[Event "Titled Tuesday Blitz June 28 Late 2022"]
[White "Meunier-Pion, Jean"]
[Black "Tatarinov, Dmitry"]
[WhiteFideId "20685327"]
[BlackFideId "24160067"]
[WhiteElo "2467"]
[BlackElo "2694"]
[Result "1-0"]
[Round "04"]
[TimeControl "180+1"]
[Date "2022.06.29"]
[WhiteClock "0:00:05"]
[BlackClock "0:00:19"]

1. e4 {[%clk 0:03:00]}  e5 {[%clk 0:02:58]} 2. Nf3 {[%clk 0:03:00]}  Nc6 {[%clk 0:02:59]} 3. Bb5 {[%clk 0:03:01]}  a6 {[%clk 0:02:58]} 4. Ba4 {[%clk 0:03:01]}  Nf6 {[%clk 0:02:58]} 5. d3 {[%clk 0:03:01]}  b5 {[%clk 0:02:57]} 6. Bb3 {[%clk 0:03:01]}  Bc5 {[%clk 0:02:56]} 7. c3 {[%clk 0:03:01]}  d6 {[%clk 0:02:56]} 8. a4 {[%clk 0:02:59]}  Rb8 {[%clk 0:02:55]} 9. O-O {[%clk 0:02:58]}  O-O {[%clk 0:02:55]} 10. Nbd2 {[%clk 0:02:51]}  Bg4 {[%clk 0:02:48]} 11. Re1 {[%clk 0:02:51]}  b4 {[%clk 0:02:45]} 12. a5 {[%clk 0:02:50]}  bxc3 {[%clk 0:02:25]} 13. bxc3 {[%clk 0:02:50]}  Be6 {[%clk 0:02:26]} 14. Nc4 {[%clk 0:02:45]}  Ng4 {[%clk 0:02:23]} 15. Re2 {[%clk 0:02:20]}  f5 {[%clk 0:02:19]} 16. Ng5 {[%clk 0:02:15]}  fxe4 {[%clk 0:01:49]} 17. d4 {[%clk 0:01:09]}  Bd5 {[%clk 0:01:20]} 18. dxc5 {[%clk 0:01:03]}  dxc5 {[%clk 0:01:08]} 19. h3 {[%clk 0:00:28]}  Nf6 {[%clk 0:00:48]} 20. Rd2 {[%clk 0:00:18]}  Kh8 {[%clk 0:00:35]} 21. Rxd5 {[%clk 0:00:05]}  Qxd5 {[%clk 0:00:32]} 22. Qxd5 {[%clk 0:00:04]}  Nxd5 {[%clk 0:00:33]} 23. Ba2 {[%clk 0:00:03]}  Nxc3 {[%clk 0:00:33]} 24. Ne6 {[%clk 0:00:02]}  Rf6 {[%clk 0:00:26]} 25. Nxc5 {[%clk 0:00:02]}  Nd4 {[%clk 0:00:22]} 26. Be3 {[%clk 0:00:02]}  Rc6 {[%clk 0:00:19]} 27. Nd7 {[%clk 0:00:01]}  Re8 {[%clk 0:00:16]} 28. Ncxe5 {[%clk 0:00:01]}  Rd6 {[%clk 0:00:15]} 29. Nf7+ {[%clk 0:00:01]}  Kg8 {[%clk 0:00:14]} 30. Nxd6+ {[%clk 0:00:02]}  Nxa2 {[%clk 0:00:14]} 31. Nxe8 {[%clk 0:00:03]}  Ne2+ {[%clk 0:00:13]} 32. Kf1 {[%clk 0:00:03]}  Nac3 {[%clk 0:00:14]} 33. Re1 {[%clk 0:00:03]}  Ng3+ {[%clk 0:00:15]} 34. fxg3 {[%clk 0:00:03]}  Kf7 {[%clk 0:00:16]} 35. Rc1 {[%clk 0:00:03]}  Na4 {[%clk 0:00:17]} 36. Rxc7 {[%clk 0:00:03]}  Kxe8 {[%clk 0:00:18]} 37. Ne5 {[%clk 0:00:04]}  Nb2 {[%clk 0:00:18]} 38. Bc5 {[%clk 0:00:04]}  Nd3 {[%clk 0:00:19]} 39. Rc8# {[%clk 0:00:05]} 1-0


[Site "https://www.chess.com"]

[Event "Titled Tuesday Blitz June 28 Late 2022"]
[White "Navarrete Mendez, Gonzalo Alberto"]
[Black "Martinez, Shawn"]
[WhiteFideId "5106850"]
[BlackFideId "2039770"]
[WhiteElo "2261"]
[BlackElo "2174"]
[Result "1-0"]
[Round "04"]
[TimeControl "180+1"]
[Date "2022.06.29"]
[WhiteClock "0:00:07"]
[BlackClock "0:01:06"]

1. e4 {[%clk 0:03:00]}  c5 {[%clk 0:02:54]} 2. Nf3 {[%clk 0:03:00]}  e6 {[%clk 0:02:48]} 3. Nc3 {[%clk 0:03:00]}  a6 {[%clk 0:02:48]} 4. d4 {[%clk 0:03:00]}  cxd4 {[%clk 0:02:49]} 5. Nxd4 {[%clk 0:03:00]}  Bb4 {[%clk 0:02:49]} 6. Bd3 {[%clk 0:02:58]}  d6 {[%clk 0:02:47]} 7. O-O {[%clk 0:02:58]}  e5 {[%clk 0:02:46]} 8. Nf5 {[%clk 0:02:55]}  Bxf5 {[%clk 0:02:45]} 9. exf5 {[%clk 0:02:56]}  Bxc3 {[%clk 0:02:44]} 10. bxc3 {[%clk 0:02:56]}  Nf6 {[%clk 0:02:45]} 11. g4 {[%clk 0:02:44]}  h6 {[%clk 0:02:38]} 12. f4 {[%clk 0:02:42]}  Nc6 {[%clk 0:02:37]} 13. Qf3 {[%clk 0:02:36]}  Kd7 {[%clk 0:02:32]} 14. Rb1 {[%clk 0:02:35]}  Qc7 {[%clk 0:02:17]} 15. g5 {[%clk 0:00:15]}  hxg5 {[%clk 0:01:57]} 16. fxg5 {[%clk 0:00:16]}  Nh5 {[%clk 0:01:56]} 17. Qd5 {[%clk 0:00:11]}  Raf8 {[%clk 0:01:44]} 18. Be3 {[%clk 0:00:10]}  Kc8 {[%clk 0:01:42]} 19. Bb6 {[%clk 0:00:09]}  Qd7 {[%clk 0:01:42]} 20. Be3 {[%clk 0:00:08]}  f6 {[%clk 0:01:39]} 21. Rb6 {[%clk 0:00:07]}  Ne7 {[%clk 0:01:31]} 22. Qc4+ {[%clk 0:00:05]}  Qc7 {[%clk 0:01:30]} 23. Qe6+ {[%clk 0:00:05]}  Qd7 {[%clk 0:01:30]} 24. Qxd7+ {[%clk 0:00:04]}  Kxd7 {[%clk 0:01:29]} 25. Rxb7+ {[%clk 0:00:05]}  Kd8 {[%clk 0:01:27]} 26. Bb6+ {[%clk 0:00:05]}  Ke8 {[%clk 0:01:24]} 27. g6 {[%clk 0:00:05]}  Nf4 {[%clk 0:01:19]} 28. Bxa6 {[%clk 0:00:06]}  Nh3+ {[%clk 0:01:15]} 29. Kg2 {[%clk 0:00:05]}  Nf4+ {[%clk 0:01:15]} 30. Rxf4 {[%clk 0:00:06]}  exf4 {[%clk 0:01:07]} 31. Bb5+ {[%clk 0:00:06]}  Nc6 {[%clk 0:01:06]} 32. Bxc6# {[%clk 0:00:07]} 1-0


[Site "https://www.chess.com"]